[Event "Early-Titled-Tuesday-Blitz-March-19-2024"]
[Site "Chess.com"]
[Date "2024.03.19"]
[Round "5"]
[White "DvaHrasta"]
[Black "Let_it_be_1"]
[Result "1-0"]
[WhiteElo "2481"]
[BlackElo "2613"]
[TimeControl "180+1"]
[EndTime "8:57:22 PDT"]
[Termination "DvaHrasta won by resignation"]

1. c4 {[%clk 0:03:00.9]} 1... e6 {[%clk 0:02:59.7]} 2. g3 {[%clk 0:03:00]} 2...
d5 {[%clk 0:03:00.1]} 3. d4 {[%clk 0:03:00.2]} 3... Nf6 {[%clk 0:03:00.5]} 4.
Bg2 {[%clk 0:03:00.4]} 4... Be7 {[%clk 0:03:01]} 5. Nf3 {[%clk 0:03:00.6]} 5...
O-O {[%clk 0:03:01.3]} 6. O-O {[%clk 0:03:00.7]} 6... dxc4 {[%clk 0:03:01.7]} 7.
Nbd2 {[%clk 0:02:57.3]} 7... c5 {[%clk 0:02:57.1]} 8. Nxc4 {[%clk 0:02:51.3]}
8... Nc6 {[%clk 0:02:56.6]} 9. dxc5 {[%clk 0:02:48.4]} 9... Bxc5 {[%clk
0:02:56.5]} 10. Bg5 {[%clk 0:02:44.9]} 10... h6 {[%clk 0:02:49.3]} 11. Qxd8
{[%clk 0:02:43.2]} 11... Rxd8 {[%clk 0:02:48.7]} 12. Bxf6 {[%clk 0:02:43.1]}
12... gxf6 {[%clk 0:02:48.9]} 13. Rfd1 {[%clk 0:02:41]} 13... Bd7 {[%clk
0:02:46.1]} 14. Rac1 {[%clk 0:02:29.7]} 14... Be7 {[%clk 0:02:37.8]} 15. Nd4
{[%clk 0:02:24.4]} 15... Rac8 {[%clk 0:01:21.4]} 16. Nxc6 {[%clk 0:02:22.2]}
16... Bxc6 {[%clk 0:01:21.6]} 17. Rxd8+ {[%clk 0:02:13.4]} 17... Bxd8 {[%clk
0:01:17.7]} 18. Nd6 {[%clk 0:02:07.3]} 18... Rc7 {[%clk 0:01:16.6]} 19. Bxc6
{[%clk 0:02:06.9]} 19... bxc6 {[%clk 0:01:14.2]} 20. Ne4 {[%clk 0:01:49.8]}
20... f5 {[%clk 0:01:09.7]} 21. Nc5 {[%clk 0:01:48.7]} 21... Be7 {[%clk
0:01:09]} 22. Nd3 {[%clk 0:01:43.4]} 22... c5 {[%clk 0:01:00.8]} 23. b3 {[%clk
0:01:41.7]} 23... Kf8 {[%clk 0:00:52.2]} 24. Rc4 {[%clk 0:01:41.3]} 24... Bd6
{[%clk 0:00:49.8]} 25. Rh4 {[%clk 0:01:35.4]} 25... Kg7 {[%clk 0:00:49.4]} 26.
Ra4 {[%clk 0:01:34.9]} 26... Kf6 {[%clk 0:00:46.8]} 27. f4 {[%clk 0:01:31.9]}
27... Kg6 {[%clk 0:00:43.6]} 28. Kf1 {[%clk 0:01:30.2]} 28... f6 {[%clk
0:00:43.5]} 29. Ke1 {[%clk 0:01:29.4]} 29... Kf7 {[%clk 0:00:42.9]} 30. Kd2
{[%clk 0:01:28.5]} 30... e5 {[%clk 0:00:41.1]} 31. Ra6 {[%clk 0:01:24.4]} 31...
Ke7 {[%clk 0:00:39.2]} 32. Kc3 {[%clk 0:01:21.9]} 32... h5 {[%clk 0:00:28.9]}
33. Kc4 {[%clk 0:01:18.8]} 33... h4 {[%clk 0:00:25]} 34. Ra5 {[%clk 0:01:05.5]}
34... hxg3 {[%clk 0:00:19.7]} 35. hxg3 {[%clk 0:01:04.9]} 35... Kf7 {[%clk
0:00:13.3]} 36. e3 {[%clk 0:01:03.5]} 36... Ke6 {[%clk 0:00:11.3]} 37. Nxc5+
{[%clk 0:00:59.9]} 37... Bxc5 {[%clk 0:00:11.1]} 38. Rxc5 {[%clk 0:00:59.7]}
38... Rg7 {[%clk 0:00:11.2]} 39. Rc6+ {[%clk 0:00:58.3]} 39... Kd7 {[%clk
0:00:10.1]} 40. Rxf6 {[%clk 0:00:56.4]} 40... Rxg3 {[%clk 0:00:10.1]} 41. Rxf5
{[%clk 0:00:51.5]} 41... exf4 {[%clk 0:00:10.1]} 42. exf4 {[%clk 0:00:51.2]}
42... Rf3 {[%clk 0:00:10.4]} 43. Kd4 {[%clk 0:00:48.6]} 43... Kc6 {[%clk
0:00:10.3]} 44. Ke4 {[%clk 0:00:48.5]} 44... Rf2 {[%clk 0:00:10.4]} 45. Ra5
{[%clk 0:00:47.3]} 45... Kb6 {[%clk 0:00:10.2]} 46. Ra4 {[%clk 0:00:47]} 46...
a5 {[%clk 0:00:10.3]} 47. Ke5 {[%clk 0:00:46.3]} 47... Re2+ {[%clk 0:00:09.8]}
48. Kf6 {[%clk 0:00:45.9]} 48... Kb5 {[%clk 0:00:09.8]} 49. f5 {[%clk
0:00:45.7]} 49... Rf2 {[%clk 0:00:09.7]} 50. Kg6 {[%clk 0:00:45.5]} 50... Rg2+
{[%clk 0:00:10]} 51. Kf7 {[%clk 0:00:45.6]} 51... Rf2 {[%clk 0:00:10.5]} 52. f6
{[%clk 0:00:45.8]} 52... Re2 {[%clk 0:00:11.4]} 53. Kf8 {[%clk 0:00:45.2]} 53...
Rf2 {[%clk 0:00:12.3]} 54. f7 {[%clk 0:00:44.9]} 54... Re2 {[%clk 0:00:12.1]}
55. Rg4 {[%clk 0:00:44.7]} 1-0

[Event "Early-Titled-Tuesday-Blitz-March-19-2024"]
[Site "Chess.com"]
[Date "2024.03.19"]
[Round "5"]
[White "pfalcon1949"]
[Black "lluiss"]
[Result "1-0"]
[WhiteElo "1982"]
[BlackElo "2235"]
[TimeControl "180+1"]
[EndTime "8:57:23 PDT"]
[Termination "pfalcon1949 won on time"]

1. e4 {[%clk 0:03:00.9]} 1... c5 {[%clk 0:02:58.5]} 2. Nf3 {[%clk 0:03:00.3]}
2... d6 {[%clk 0:02:59]} 3. d4 {[%clk 0:03:00.9]} 3... cxd4 {[%clk 0:02:59.4]}
4. Nxd4 {[%clk 0:03:01.6]} 4... Nf6 {[%clk 0:02:59.5]} 5. Nc3 {[%clk 0:03:02.1]}
5... g6 {[%clk 0:02:59.7]} 6. Be3 {[%clk 0:03:02.1]} 6... Bg7 {[%clk 0:03:00.2]}
7. f3 {[%clk 0:03:02]} 7... O-O {[%clk 0:03:00.2]} 8. Bc4 {[%clk 0:03:02.4]}
8... Nc6 {[%clk 0:03:00.3]} 9. Qe2 {[%clk 0:03:02.4]} 9... Nxd4 {[%clk 0:02:57]}
10. Bxd4 {[%clk 0:03:01.9]} 10... Be6 {[%clk 0:02:57.5]} 11. Bxe6 {[%clk
0:02:55.7]} 11... fxe6 {[%clk 0:02:56.8]} 12. O-O-O {[%clk 0:02:56.3]} 12... Rc8
{[%clk 0:02:39.2]} 13. e5 {[%clk 0:02:53.8]} 13... Nh5 {[%clk 0:02:25.6]} 14. g3
{[%clk 0:02:26.9]} 14... d5 {[%clk 0:02:01.5]} 15. f4 {[%clk 0:02:21.6]} 15...
Qa5 {[%clk 0:01:43.1]} 16. Kb1 {[%clk 0:02:15.2]} 16... Rc4 {[%clk 0:01:31.7]}
17. Qg4 {[%clk 0:02:03.8]} 17... Qa6 {[%clk 0:01:17.6]} 18. b3 {[%clk
0:01:56.6]} 18... Rc6 {[%clk 0:01:14]} 19. Kb2 {[%clk 0:01:54.2]} 19... Bh6
{[%clk 0:01:05.9]} 20. Qh4 {[%clk 0:01:33.8]} 20... Qa5 {[%clk 0:00:27.5]} 21.
g4 {[%clk 0:01:06.4]} 21... Rxf4 {[%clk 0:00:24.1]} 22. Qxe7 {[%clk 0:01:05.2]}
22... Rxd4 {[%clk 0:00:22.6]} 23. Qe8+ {[%clk 0:00:55.2]} 23... Bf8 {[%clk
0:00:22.1]} 24. Rxd4 {[%clk 0:00:34.6]} 24... Qxc3+ {[%clk 0:00:20.4]} 25. Kb1
{[%clk 0:00:33.5]} 25... Ng7 {[%clk 0:00:20.4]} 26. Rhd1 {[%clk 0:00:28]} 26...
Qxc2+ {[%clk 0:00:17]} 27. Ka1 {[%clk 0:00:28.3]} 27... Qc3+ {[%clk 0:00:17]}
28. Kb1 {[%clk 0:00:28.2]} 28... Qc2+ {[%clk 0:00:15.1]} 29. Ka1 {[%clk
0:00:28.4]} 29... Qxh2 {[%clk 0:00:11.4]} 30. R4d2 {[%clk 0:00:25.6]} 30...
Qxe5+ {[%clk 0:00:09.9]} 31. Kb1 {[%clk 0:00:26.5]} 31... Qe4+ {[%clk
0:00:09.6]} 32. Ka1 {[%clk 0:00:26.7]} 32... Qe5+ {[%clk 0:00:08.4]} 33. Kb1
{[%clk 0:00:27]} 33... Qe4+ {[%clk 0:00:07.3]} 34. Ka1 {[%clk 0:00:27.4]} 34...
Qxg4 {[%clk 0:00:07.6]} 35. Qb8 {[%clk 0:00:22.3]} 35... Qf5 {[%clk 0:00:07.3]}
36. Qxb7 {[%clk 0:00:20.5]} 36... Qe5+ {[%clk 0:00:07.1]} 37. Kb1 {[%clk
0:00:19.4]} 37... Qe4+ {[%clk 0:00:04.4]} 38. Kb2 {[%clk 0:00:19.6]} 38... d4
{[%clk 0:00:04.5]} 39. Qb5 {[%clk 0:00:17.5]} 39... e5 {[%clk 0:00:02.5]} 40.
Qd3 {[%clk 0:00:13]} 40... Qxd3 {[%clk 0:00:02]} 41. Rxd3 {[%clk 0:00:13.9]} 1-0

[Event "Early-Titled-Tuesday-Blitz-March-19-2024"]
[Site "Chess.com"]
[Date "2024.03.19"]
[Round "5"]
[White "newauto"]
[Black "KorolDimitriy75"]
[Result "0-1"]
[WhiteElo "2138"]
[BlackElo "2410"]
[TimeControl "180+1"]
[EndTime "8:57:25 PDT"]
[Termination "KorolDimitriy75 won by checkmate"]

1. d4 {[%clk 0:03:00.9]} 1... Nf6 {[%clk 0:02:59.7]} 2. Nf3 {[%clk 0:03:01.8]}
2... g6 {[%clk 0:02:59.4]} 3. Bg5 {[%clk 0:03:02.2]} 3... Bg7 {[%clk 0:02:58.4]}
4. Nbd2 {[%clk 0:03:02.6]} 4... c5 {[%clk 0:02:58.3]} 5. c3 {[%clk 0:03:01.4]}
5... cxd4 {[%clk 0:02:54.7]} 6. cxd4 {[%clk 0:03:01.3]} 6... d5 {[%clk
0:02:54.3]} 7. e3 {[%clk 0:03:01.3]} 7... O-O {[%clk 0:02:54.2]} 8. Be2 {[%clk
0:02:59.9]} 8... Nc6 {[%clk 0:02:54.1]} 9. O-O {[%clk 0:02:59.9]} 9... Bf5
{[%clk 0:02:46.1]} 10. Rc1 {[%clk 0:02:59.3]} 10... Rc8 {[%clk 0:02:45.4]} 11.
Qb3 {[%clk 0:02:53.1]} 11... Qd7 {[%clk 0:02:19]} 12. Bb5 {[%clk 0:02:48.8]}
12... Ne4 {[%clk 0:02:03.5]} 13. Nxe4 {[%clk 0:02:38.3]} 13... Bxe4 {[%clk
0:02:04.4]} 14. Ne5 {[%clk 0:02:29.8]} 14... Bxe5 {[%clk 0:02:00.8]} 15. dxe5
{[%clk 0:02:29.4]} 15... Bxg2 {[%clk 0:01:42]} 16. Qa4 {[%clk 0:01:54.3]} 16...
Bxf1 {[%clk 0:00:53.9]} 17. Rxf1 {[%clk 0:01:52.7]} 17... a6 {[%clk 0:00:51.2]}
18. Be2 {[%clk 0:01:49]} 18... Nxe5 {[%clk 0:00:47.6]} 19. Qh4 {[%clk
0:01:49.4]} 19... f6 {[%clk 0:00:43.2]} 20. Bh6 {[%clk 0:01:48.1]} 20... Rfe8
{[%clk 0:00:33.2]} 21. f4 {[%clk 0:01:45.3]} 21... Nc4 {[%clk 0:00:22.5]} 22. f5
{[%clk 0:01:38.2]} 22... g5 {[%clk 0:00:21.5]} 23. Qg3 {[%clk 0:01:15.1]} 23...
Qd6 {[%clk 0:00:21.2]} 24. Qh3 {[%clk 0:00:58.8]} 24... Qe5 {[%clk 0:00:19.5]}
25. Bh5 {[%clk 0:00:41.3]} 25... Qxe3+ {[%clk 0:00:14.3]} 26. Kg2 {[%clk
0:00:30.1]} 26... Qxh3+ {[%clk 0:00:12.7]} 27. Kxh3 {[%clk 0:00:31]} 27... Red8
{[%clk 0:00:10.5]} 28. Re1 {[%clk 0:00:30.5]} 28... Ne5 {[%clk 0:00:10.5]} 29.
Kg3 {[%clk 0:00:27.7]} 29... d4 {[%clk 0:00:09.8]} 30. h4 {[%clk 0:00:28]} 30...
gxh4+ {[%clk 0:00:08.9]} 31. Kxh4 {[%clk 0:00:27.8]} 31... Kh8 {[%clk 0:00:08]}
32. Bd1 {[%clk 0:00:18.9]} 32... d3 {[%clk 0:00:07.7]} 33. Bb3 {[%clk
0:00:18.4]} 33... d2 {[%clk 0:00:04.2]} 34. Rd1 {[%clk 0:00:17.5]} 34... Rd3
{[%clk 0:00:03]} 35. Kh5 {[%clk 0:00:15.3]} 35... Rcd8 {[%clk 0:00:02.3]} 36.
Kh4 {[%clk 0:00:14.8]} 36... R8d4+ {[%clk 0:00:02.3]} 37. Bf4 {[%clk 0:00:12.1]}
37... Rxf4+ {[%clk 0:00:02.1]} 38. Kh5 {[%clk 0:00:11.9]} 38... Rxf5+ {[%clk
0:00:02.3]} 39. Kh4 {[%clk 0:00:11.5]} 39... Rf4+ {[%clk 0:00:02]} 40. Kh5
{[%clk 0:00:11.2]} 40... Rh3# {[%clk 0:00:01.4]} 0-1

[Event "Early-Titled-Tuesday-Blitz-March-19-2024"]
[Site "Chess.com"]
[Date "2024.03.19"]
[Round "5"]
[White "Pragmatist237"]
[Black "LileKoridze"]
[Result "1/2-1/2"]
[WhiteElo "2303"]
[BlackElo "2441"]
[TimeControl "180+1"]
[EndTime "8:57:29 PDT"]
[Termination "Game drawn by repetition"]

1. e4 {[%clk 0:03:00.9]} 1... c5 {[%clk 0:03:00.2]} 2. Nf3 {[%clk 0:02:59.9]}
2... d6 {[%clk 0:03:00.7]} 3. d4 {[%clk 0:03:00.2]} 3... cxd4 {[%clk 0:03:01.2]}
4. Qxd4 {[%clk 0:03:01.1]} 4... a6 {[%clk 0:03:00.9]} 5. c4 {[%clk 0:02:57.7]}
5... Nd7 {[%clk 0:02:57.4]} 6. Nc3 {[%clk 0:02:56]} 6... Ngf6 {[%clk 0:02:57.6]}
7. Be2 {[%clk 0:02:51.1]} 7... g6 {[%clk 0:02:57.8]} 8. Be3 {[%clk 0:02:43.5]}
8... Bg7 {[%clk 0:02:58.1]} 9. Qd2 {[%clk 0:02:42.1]} 9... O-O {[%clk
0:02:58.3]} 10. h3 {[%clk 0:02:41]} 10... Nc5 {[%clk 0:02:36.2]} 11. Bxc5 {[%clk
0:02:08.5]} 11... dxc5 {[%clk 0:02:36.2]} 12. Qc2 {[%clk 0:02:05.9]} 12... Qc7
{[%clk 0:02:28.6]} 13. O-O {[%clk 0:02:05]} 13... e6 {[%clk 0:02:25.9]} 14. Rad1
{[%clk 0:01:55.1]} 14... Nd7 {[%clk 0:02:20.2]} 15. Kh1 {[%clk 0:01:41.9]} 15...
b6 {[%clk 0:02:20.1]} 16. Ne1 {[%clk 0:01:32.6]} 16... Bb7 {[%clk 0:02:19.4]}
17. f4 {[%clk 0:01:32.5]} 17... Nf6 {[%clk 0:02:16.9]} 18. Bf3 {[%clk
0:00:58.8]} 18... Rfd8 {[%clk 0:02:10.6]} 19. e5 {[%clk 0:00:56.3]} 19... Ne8
{[%clk 0:02:08.9]} 20. Bxb7 {[%clk 0:00:52.9]} 20... Qxb7 {[%clk 0:02:09.2]} 21.
Nf3 {[%clk 0:00:53.1]} 21... b5 {[%clk 0:02:07.7]} 22. cxb5 {[%clk 0:00:46.6]}
22... axb5 {[%clk 0:02:07.2]} 23. Rxd8 {[%clk 0:00:44.6]} 23... Rxd8 {[%clk
0:02:06.9]} 24. Ne4 {[%clk 0:00:45]} 24... c4 {[%clk 0:02:05.6]} 25. a3 {[%clk
0:00:36.2]} 25... Nc7 {[%clk 0:02:02.2]} 26. Nd6 {[%clk 0:00:36.1]} 26... Qc6
{[%clk 0:01:58.1]} 27. Nd4 {[%clk 0:00:35.6]} 27... Qb6 {[%clk 0:01:52.5]} 28.
Qe4 {[%clk 0:00:31.1]} 28... Bf8 {[%clk 0:01:36.8]} 29. Nc6 {[%clk 0:00:23.1]}
29... Rd7 {[%clk 0:01:33.1]} 30. Rd1 {[%clk 0:00:22.4]} 30... Ne8 {[%clk
0:01:28.4]} 31. f5 {[%clk 0:00:17.4]} 31... Nxd6 {[%clk 0:01:27.7]} 32. exd6
{[%clk 0:00:18.3]} 32... exf5 {[%clk 0:01:24.5]} 33. Ne7+ {[%clk 0:00:12.7]}
33... Bxe7 {[%clk 0:01:24]} 34. Qxe7 {[%clk 0:00:09]} 34... Qc6 {[%clk
0:01:12.5]} 35. Qe8+ {[%clk 0:00:09.1]} 35... Kg7 {[%clk 0:01:12.3]} 36. Qe5+
{[%clk 0:00:09.5]} 36... Kg8 {[%clk 0:01:08.6]} 37. Qe8+ {[%clk 0:00:09.6]}
37... Kg7 {[%clk 0:01:08.3]} 38. Qe5+ {[%clk 0:00:10.3]} 38... f6 {[%clk
0:00:47.8]} 39. Qe6 {[%clk 0:00:10.4]} 39... Qb7 {[%clk 0:00:48]} 40. Qe8 {[%clk
0:00:07.9]} 40... Qc6 {[%clk 0:00:36.1]} 41. Qe6 {[%clk 0:00:07]} 41... Qc8
{[%clk 0:00:29.8]} 42. Re1 {[%clk 0:00:05.7]} 42... Qd8 {[%clk 0:00:29.3]} 43.
Rd1 {[%clk 0:00:05.9]} 43... Qc8 {[%clk 0:00:26.1]} 44. Re1 {[%clk 0:00:04.8]}
44... Qd8 {[%clk 0:00:25.1]} 45. Rd1 {[%clk 0:00:05.4]} 45... Qc8 {[%clk
0:00:25.5]} 1/2-1/2

[Event "Early-Titled-Tuesday-Blitz-March-19-2024"]
[Site "Chess.com"]
[Date "2024.03.19"]
[Round "5"]
[White "Matols"]
[Black "xasid81"]
[Result "0-1"]
[WhiteElo "2356"]
[BlackElo "2594"]
[TimeControl "180+1"]
[EndTime "8:57:30 PDT"]
[Termination "xasid81 won on time"]

1. d4 {[%clk 0:03:00.2]} 1... d5 {[%clk 0:02:57.4]} 2. c4 {[%clk 0:02:56.9]}
2... dxc4 {[%clk 0:02:58.3]} 3. Nf3 {[%clk 0:02:56.3]} 3... e6 {[%clk
0:02:59.2]} 4. e3 {[%clk 0:02:56.2]} 4... a6 {[%clk 0:02:59.4]} 5. Bxc4 {[%clk
0:02:55.4]} 5... c5 {[%clk 0:03:00.1]} 6. Bd3 {[%clk 0:02:54.1]} 6... Nf6 {[%clk
0:02:59.8]} 7. O-O {[%clk 0:02:53.3]} 7... Nc6 {[%clk 0:03:00]} 8. Qe2 {[%clk
0:02:52.7]} 8... cxd4 {[%clk 0:02:59.8]} 9. exd4 {[%clk 0:02:53.6]} 9... Be7
{[%clk 0:02:59.4]} 10. Rd1 {[%clk 0:02:52.6]} 10... Nb4 {[%clk 0:02:56.8]} 11.
Bc4 {[%clk 0:02:43.8]} 11... b5 {[%clk 0:02:56]} 12. Bb3 {[%clk 0:02:36.4]}
12... Bb7 {[%clk 0:02:55.8]} 13. Ne5 {[%clk 0:02:33.6]} 13... O-O {[%clk
0:02:52.1]} 14. Nc3 {[%clk 0:02:28.9]} 14... Nbd5 {[%clk 0:02:47.3]} 15. Bg5
{[%clk 0:02:22.2]} 15... Nxc3 {[%clk 0:02:46.4]} 16. bxc3 {[%clk 0:02:21.4]}
16... Ne4 {[%clk 0:02:36.7]} 17. Bxe7 {[%clk 0:02:06.3]} 17... Qxe7 {[%clk
0:02:32.8]} 18. Bc2 {[%clk 0:01:48.1]} 18... f5 {[%clk 0:02:19.1]} 19. Rd3
{[%clk 0:01:41.3]} 19... Rac8 {[%clk 0:02:16.5]} 20. Rh3 {[%clk 0:01:07.5]}
20... Rxc3 {[%clk 0:02:01.1]} 21. Bxe4 {[%clk 0:01:02.2]} 21... Rxh3 {[%clk
0:01:55]} 22. Bxb7 {[%clk 0:01:01.3]} 22... Rc3 {[%clk 0:01:53.1]} 23. Bf3
{[%clk 0:00:56.8]} 23... Rfc8 {[%clk 0:01:49.7]} 24. h3 {[%clk 0:00:54.2]} 24...
Qd6 {[%clk 0:01:44.3]} 25. Rd1 {[%clk 0:00:51.4]} 25... Rc2 {[%clk 0:01:40.1]}
26. Qe3 {[%clk 0:00:44.9]} 26... Rxa2 {[%clk 0:01:27.2]} 27. d5 {[%clk
0:00:39.2]} 27... Ra3 {[%clk 0:01:25.1]} 28. Qe2 {[%clk 0:00:30.7]} 28... Rac3
{[%clk 0:01:01.2]} 29. dxe6 {[%clk 0:00:28.7]} 29... Rc1 {[%clk 0:00:45.4]} 30.
Rxc1 {[%clk 0:00:08.9]} 30... Rxc1+ {[%clk 0:00:44.5]} 31. Kh2 {[%clk
0:00:09.3]} 31... Rc5 {[%clk 0:00:43.1]} 32. e7 {[%clk 0:00:06.8]} 32... Rxe5
{[%clk 0:00:37.7]} 33. Qa2+ {[%clk 0:00:04.7]} 33... Kh8 {[%clk 0:00:26.3]} 34.
g3 {[%clk 0:00:04.6]} 34... Rxe7 {[%clk 0:00:23.7]} 35. Qc2 {[%clk 0:00:03.7]}
35... Re8 {[%clk 0:00:21.4]} 36. Qxf5 {[%clk 0:00:03.2]} 36... Rf8 {[%clk
0:00:21.2]} 37. Qg4 {[%clk 0:00:03.2]} 37... Qf6 {[%clk 0:00:20.5]} 38. Kg2
{[%clk 0:00:02.6]} 38... b4 {[%clk 0:00:19.9]} 39. h4 {[%clk 0:00:02.1]} 39...
b3 {[%clk 0:00:19.3]} 40. h5 {[%clk 0:00:02.4]} 40... Qxf3+ {[%clk 0:00:18.2]}
0-1

[Event "Early-Titled-Tuesday-Blitz-March-19-2024"]
[Site "Chess.com"]
[Date "2024.03.19"]
[Round "5"]
[White "Shield12"]
[Black "Polish_fighter3000"]
[Result "0-1"]
[WhiteElo "2942"]
[BlackElo "3159"]
[TimeControl "180+1"]
[EndTime "8:57:32 PDT"]
[Termination "Polish_fighter3000 won by resignation"]

1. e4 {[%clk 0:03:00.9]} 1... e5 {[%clk 0:02:23.5]} 2. Nf3 {[%clk 0:03:00.5]}
2... Nc6 {[%clk 0:02:24.1]} 3. Bc4 {[%clk 0:03:00.2]} 3... Bc5 {[%clk
0:02:23.2]} 4. c3 {[%clk 0:02:59.5]} 4... Nf6 {[%clk 0:02:23.8]} 5. d3 {[%clk
0:03:00]} 5... d6 {[%clk 0:02:22.1]} 6. O-O {[%clk 0:02:59.2]} 6... a5 {[%clk
0:02:22.1]} 7. Re1 {[%clk 0:02:58.9]} 7... Ba7 {[%clk 0:02:20.4]} 8. h3 {[%clk
0:02:55.7]} 8... O-O {[%clk 0:02:18.2]} 9. Nbd2 {[%clk 0:02:44.3]} 9... Ne7
{[%clk 0:02:06.4]} 10. Nf1 {[%clk 0:02:40.4]} 10... Ng6 {[%clk 0:02:03]} 11. Ng3
{[%clk 0:02:40.1]} 11... c6 {[%clk 0:02:00.1]} 12. Bb3 {[%clk 0:02:35.1]} 12...
Re8 {[%clk 0:01:51.4]} 13. d4 {[%clk 0:02:29.1]} 13... h6 {[%clk 0:01:27.2]} 14.
Bc2 {[%clk 0:02:24.1]} 14... b5 {[%clk 0:01:21.2]} 15. Be3 {[%clk 0:02:23.8]}
15... a4 {[%clk 0:01:19.6]} 16. Qd2 {[%clk 0:02:23.6]} 16... c5 {[%clk
0:01:01.2]} 17. Rad1 {[%clk 0:01:47.6]} 17... cxd4 {[%clk 0:00:54.4]} 18. cxd4
{[%clk 0:01:48.5]} 18... Bb6 {[%clk 0:00:51.8]} 19. dxe5 {[%clk 0:01:39.2]}
19... dxe5 {[%clk 0:00:32.4]} 20. Bxh6 {[%clk 0:01:38.6]} 20... gxh6 {[%clk
0:00:19.8]} 21. Qxh6 {[%clk 0:01:39.5]} 21... Qe7 {[%clk 0:00:20.2]} 22. Nf5
{[%clk 0:01:30]} 22... Qf8 {[%clk 0:00:20.4]} 23. Qg5 {[%clk 0:01:18.7]} 23...
Ra6 {[%clk 0:00:20.3]} 24. N3h4 {[%clk 0:01:03.2]} 24... Nh7 {[%clk 0:00:15.4]}
25. Qg3 {[%clk 0:01:00.4]} 25... Bd8 {[%clk 0:00:14]} 26. Bd3 {[%clk 0:00:49.1]}
26... Rb6 {[%clk 0:00:12]} 27. Rc1 {[%clk 0:00:43.6]} 27... Bd7 {[%clk
0:00:11.5]} 28. Red1 {[%clk 0:00:41.7]} 28... Kh8 {[%clk 0:00:07.8]} 29. Bf1
{[%clk 0:00:33.9]} 29... Bxh4 {[%clk 0:00:04.1]} 30. Nxh4 {[%clk 0:00:34.8]}
30... Nxh4 {[%clk 0:00:04]} 31. Qxh4 {[%clk 0:00:28.2]} 31... Be6 {[%clk
0:00:03]} 32. Rc7 {[%clk 0:00:27]} 32... Qg7 {[%clk 0:00:02.2]} 33. Re7 {[%clk
0:00:21.8]} 33... Rg8 {[%clk 0:00:01.7]} 34. Rd3 {[%clk 0:00:18.8]} 34... Qg5
{[%clk 0:00:01.9]} 35. Qxg5 {[%clk 0:00:17.4]} 35... Nxg5 {[%clk 0:00:02.8]} 36.
Kh2 {[%clk 0:00:13.4]} 36... Nxe4 {[%clk 0:00:02.5]} 37. f3 {[%clk 0:00:13.6]}
37... Nf6 {[%clk 0:00:02.5]} 38. Rd2 {[%clk 0:00:12.2]} 38... Ra8 {[%clk
0:00:02.3]} 39. a3 {[%clk 0:00:12]} 39... Nd5 {[%clk 0:00:02.6]} 40. Rxd5 {[%clk
0:00:10.4]} 40... Bxd5 {[%clk 0:00:03.5]} 41. Rxe5 {[%clk 0:00:11.2]} 41... Bc4
{[%clk 0:00:04]} 0-1

[Event "Early-Titled-Tuesday-Blitz-March-19-2024"]
[Site "Chess.com"]
[Date "2024.03.19"]
[Round "5"]
[White "Jumbo"]
[Black "Rutricks"]
[Result "0-1"]
[WhiteElo "2883"]
[BlackElo "2722"]
[TimeControl "180+1"]
[EndTime "8:57:32 PDT"]
[Termination "Rutricks won on time"]

1. d4 {[%clk 0:02:56.7]} 1... g6 {[%clk 0:03:00.4]} 2. Nf3 {[%clk 0:02:56.6]}
2... Bg7 {[%clk 0:03:01]} 3. Bf4 {[%clk 0:02:56.9]} 3... Nf6 {[%clk 0:03:01.3]}
4. e3 {[%clk 0:02:57.2]} 4... d6 {[%clk 0:03:01.9]} 5. Be2 {[%clk 0:02:57.7]}
5... O-O {[%clk 0:03:02.6]} 6. h3 {[%clk 0:02:57.9]} 6... Nbd7 {[%clk 0:03:03]}
7. O-O {[%clk 0:02:57.9]} 7... b6 {[%clk 0:03:03.7]} 8. a4 {[%clk 0:02:57.2]}
8... Bb7 {[%clk 0:03:04.4]} 9. a5 {[%clk 0:02:57.1]} 9... c5 {[%clk 0:02:58.2]}
10. c3 {[%clk 0:02:55.8]} 10... Qc7 {[%clk 0:02:54.4]} 11. Nbd2 {[%clk
0:02:54.9]} 11... Rfc8 {[%clk 0:02:50.8]} 12. Qb3 {[%clk 0:02:49]} 12... Bd5
{[%clk 0:02:50.1]} 13. Qa3 {[%clk 0:02:44.4]} 13... c4 {[%clk 0:02:30.3]} 14.
Rfe1 {[%clk 0:02:31.4]} 14... Qc6 {[%clk 0:02:11.5]} 15. Bf1 {[%clk 0:01:49.5]}
15... Rab8 {[%clk 0:01:45.9]} 16. b4 {[%clk 0:01:15.6]} 16... b5 {[%clk
0:01:30.8]} 17. Bh2 {[%clk 0:01:13.9]} 17... a6 {[%clk 0:01:20.9]} 18. Qc1
{[%clk 0:01:06.8]} 18... Re8 {[%clk 0:01:19.9]} 19. Qd1 {[%clk 0:00:25.5]} 19...
Rbd8 {[%clk 0:01:18.9]} 20. Qe2 {[%clk 0:00:24.6]} 20... Ne4 {[%clk 0:01:17.8]}
21. Nxe4 {[%clk 0:00:23.9]} 21... Bxe4 {[%clk 0:01:18.7]} 22. Nd2 {[%clk
0:00:24.3]} 22... d5 {[%clk 0:01:10.1]} 23. f4 {[%clk 0:00:03.9]} 23... Bd3
{[%clk 0:00:42.6]} 24. Qf3 {[%clk 0:00:04]} 24... f6 {[%clk 0:00:40.7]} 25. e4
{[%clk 0:00:03.8]} 25... dxe4 {[%clk 0:00:21.3]} 26. Nxe4 {[%clk 0:00:03.5]}
26... e5 {[%clk 0:00:21.5]} 27. fxe5 {[%clk 0:00:03.1]} 27... fxe5 {[%clk
0:00:14.4]} 28. d5 {[%clk 0:00:03.2]} 28... Qxd5 {[%clk 0:00:10.7]} 29. Bxd3
{[%clk 0:00:03]} 29... cxd3 {[%clk 0:00:10.9]} 30. Rad1 {[%clk 0:00:03.7]} 30...
Nf6 {[%clk 0:00:08.9]} 31. Nxf6+ {[%clk 0:00:03]} 31... Bxf6 {[%clk 0:00:09.2]}
32. Qxf6 {[%clk 0:00:03.6]} 32... e4 {[%clk 0:00:09.2]} 33. Bf4 {[%clk
0:00:02.6]} 33... Rf8 {[%clk 0:00:07.5]} 34. Qg5 {[%clk 0:00:03.1]} 34... Rf5
{[%clk 0:00:07.6]} 35. Qg3 {[%clk 0:00:03.2]} 35... Re8 {[%clk 0:00:07.7]} 36.
Be3 {[%clk 0:00:03.5]} 36... Qc4 {[%clk 0:00:08.2]} 37. Bd4 {[%clk 0:00:02.9]}
37... Qa2 {[%clk 0:00:06.3]} 38. Qe3 {[%clk 0:00:01.1]} 38... Qc2 {[%clk
0:00:06.2]} 39. Rd2 {[%clk 0:00:01.3]} 39... Qb3 {[%clk 0:00:06.4]} 0-1